lending/lending_fUSD_20241229
["ID","MTS","AMOUNT","RATE_DAILY","PERIOD"]
[347125993,1735512658170,-500.0,0.00014095,2]
[347125994,1735512658180,-399.25737878,0.00014095,2]
[347125995,1735512658189,-610.97,0.00014095,2]
[347125996,1735512658198,-500.0,0.00014095,2]
[347125997,1735512658207,-500.0,0.00014095,2]
[347125998,1735512658217,-500.0,0.00014095,2]
[347125999,1735512658226,-500.0,0.00014095,2]
[347126000,1735512658234,-500.0,0.00014095,2]
[347126001,1735512658243,-500.0,0.00014095,2]
[347126002,1735512658253,-598.84,0.00014095,2]
[347126003,1735512658266,-514.33,0.00014095,2]
[347126004,1735512658275,-885.65,0.00014095,2]
[347126005,1735512658284,-576.7,0.00014095,2]
[347126006,1735512658293,-531.12,0.00014095,2]
[347126007,1735512658303,-925.56,0.00014095,2]
[347126008,1735512658313,-500.0,0.00014095,2]
[347126009,1735512658322,-500.0,0.00014095,2]
[347126010,1735512658332,-519.42,0.00014095,2]
[347126011,1735512658341,-739.11,0.00014095,2]
[347126012,1735512658350,-735.49,0.00014095,2]
[347126013,1735512658359,-798.57,0.00014095,2]
[347126014,1735512658368,-500.0,0.00014095,2]
[347126015,1735512658377,-648.48,0.00014095,2]
[347126016,1735512658387,-500.0,0.00014095,2]
[347126017,1735512658396,-809.97,0.00014095,2]
[347126018,1735512658405,-528.84,0.00014095,2]
[347126019,1735512658415,-500.0,0.00014095,2]
[347126020,1735512658424,-399.8659651,0.00014095,2]
[347126021,1735512658434,-500.0,0.00014095,2]
[347126022,1735512658443,-500.0,0.00014095,2]
[347126023,1735512658452,-500.0,0.00014095,2]
[347126024,1735512658461,-524.35,0.00014095,2]
[347126025,1735512658470,-522.01,0.00014095,2]
[347126026,1735512658480,-500.0,0.00014095,2]
[347126027,1735512658489,-500.0,0.00014095,2]
[347126028,1735512658498,-500.0,0.00014095,2]
[347126029,1735512658507,-532.45,0.00014095,2]
[347126030,1735512658517,-500.0,0.00014095,2]
[347126031,1735512658526,-698.92,0.00014095,2]
[347126032,1735512658535,-500.0,0.00014095,2]
[347126033,1735512658545,-500.0,0.00014095,2]
[347126034,1735512658554,-541.06,0.00014095,2]
[347126035,1735512658563,-500.0,0.00014095,2]
[347126036,1735512658572,-500.0,0.00014095,2]
[347126037,1735512658582,-500.0,0.00014095,2]
[347126038,1735512658591,-500.0,0.00014095,2]
[347126039,1735512658600,-517.75,0.00014095,2]
[347126040,1735512658610,-904.52,0.00014095,2]
[347126041,1735512658620,-628.11,0.00014095,2]
[347126042,1735512658629,-500.0,0.00014095,2]
[347126043,1735512658639,-500.0,0.00014095,2]
[347126044,1735512658648,-500.0,0.00014095,2]
[347126045,1735512658657,-532.12,0.00014095,2]
[347126046,1735512658666,-500.0,0.00014095,2]
[347126047,1735512658675,-588.86,0.00014095,2]
[347126048,1735512658685,-500.0,0.00014095,2]
[347126049,1735512658694,-549.66,0.00014095,2]
[347126050,1735512658703,-500.0,0.00014095,2]
[347126051,1735512658712,-500.0,0.00014095,2]
[347126052,1735512658722,-586.0,0.00014095,2]
[347126053,1735512658732,-625.88,0.00014095,2]
[347126054,1735512658742,-500.0,0.00014095,2]
[347126055,1735512658751,-500.0,0.00014095,2]
[347126056,1735512658760,-1194.27,0.00014095,2]
[347126057,1735512658770,-555.77,0.00014095,2]
[347126058,1735512658779,-500.0,0.00014095,2]
[347126059,1735512658789,-569.94,0.00014095,2]
[347126060,1735512658798,-500.0,0.00014095,2]
[347126061,1735512658807,-876.79,0.00014095,2]
[347126062,1735512658816,-500.0,0.00014095,2]
[347126063,1735512658825,-508.57,0.00014095,2]
[347126064,1735512658835,-500.0,0.00014095,2]
[347126065,1735512658845,-500.0,0.00014095,2]
[347126066,1735512658854,-500.0,0.00014095,2]
[347126067,1735512658863,-517.89,0.00014095,2]
[347126068,1735512658872,-1285.64,0.00014095,2]
[347126069,1735512658881,-404.38557018,0.00014095,2]
[347126070,1735512658891,-555.82,0.00014095,2]
[347126071,1735512658900,-500.0,0.00014095,2]
[347126072,1735512658909,-701.93,0.00014095,2]
[347126073,1735512658919,-500.0,0.00014095,2]
[347126074,1735512658928,-500.0,0.00014095,2]
[347126075,1735512658939,-687.63,0.00014095,2]
[347126076,1735512658948,-1144.31,0.00014095,2]
[347126077,1735512658958,-500.0,0.00014095,2]
[347126078,1735512658967,-709.97,0.00014095,2]
[347126079,1735512658976,-637.95,0.00014095,2]
[347126080,1735512658986,-500.0,0.00014095,2]
[347126081,1735512658995,-764.91,0.00014095,2]
[347126082,1735512659004,-562.61,0.00014095,2]
[347126083,1735512659013,-693.6,0.00014095,2]
[347126084,1735512659023,-500.0,0.00014095,2]
[347126085,1735512659032,-500.0,0.00014095,2]
[347126086,1735512659042,-703.11,0.00014095,2]
[347126087,1735512659051,-814.93,0.00014095,2]
[347126088,1735512659061,-396.59942596,0.00014095,2]
[347126089,1735512659070,-810.41,0.00014095,2]
[347126090,1735512659080,-1217.7,0.00014095,2]
[347126091,1735512659090,-649.9,0.00014095,2]
[347126092,1735512659100,-633.84,0.00014095,2]
[347126093,1735512659108,-500.0,0.00014095,2]
[347126094,1735512659117,-599.98,0.00014095,2]
[347126095,1735512659126,-500.0,0.00014095,2]
[347126096,1735512659136,-557.36,0.00014095,2]
[347126097,1735512659145,-500.0,0.00014095,2]
[347126098,1735512659155,-639.65,0.00014095,2]
[347126099,1735512659164,-657.03,0.00014095,2]
[347126100,1735512659173,-500.0,0.00014095,2]
[347126101,1735512659183,-500.0,0.00014095,2]
[347126102,1735512659192,-500.0,0.00014095,2]
[347126103,1735512659201,-834.39,0.00014095,2]
[347126104,1735512659211,-500.0,0.00014095,2]
[347126105,1735512659220,-671.99,0.00014095,2]
[347126106,1735512659229,-500.0,0.00014095,2]
[347126107,1735512659238,-500.0,0.00014095,2]
[347126108,1735512659247,-500.0,0.00014095,2]
[347126109,1735512659257,-740.04,0.00014095,2]
[347126110,1735512659269,-1194.96,0.00014095,2]
[347126111,1735512659278,-1069.09,0.00014095,2]
[347126112,1735512659287,-500.0,0.00014095,2]
[347126113,1735512659297,-500.0,0.00014095,2]
[347126114,1735512659306,-500.0,0.00014095,2]
[347126115,1735512659315,-568.93,0.00014095,2]
[347126116,1735512659324,-500.0,0.00014095,2]
[347126117,1735512659333,-650.86,0.00014095,2]
[347126118,1735512659343,-593.28,0.00014095,2]
[347126119,1735512659352,-774.94,0.00014095,2]
[347126120,1735512659361,-593.04,0.00014095,2]
[347126121,1735512659370,-500.0,0.00014095,2]
[347126122,1735512659378,-500.0,0.00014095,2]
[347126123,1735512659388,-500.0,0.00014095,2]
[347126124,1735512659396,-595.68,0.00014095,2]
[347126125,1735512659406,-736.43,0.00014095,2]
[347126126,1735512659414,-500.0,0.00014095,2]
[347126127,1735512659423,-716.25,0.00014095,2]
[347126128,1735512659433,-500.0,0.00014095,2]
[347126129,1735512659442,-500.0,0.00014095,2]
[347126130,1735512659451,-1190.68,0.00014095,2]
[347126131,1735512659461,-500.0,0.00014095,2]
[347126132,1735512659470,-3138.83,0.00014095,2]
[347126133,1735512659479,-981.31,0.00014095,2]
[347126134,1735512659488,-500.0,0.00014095,2]
[347126135,1735512659497,-1395.02,0.00014095,2]
[347126136,1735512659507,-500.0,0.00014095,2]
[347126137,1735512659515,-1950.04,0.00014095,2]
[347126138,1735512659525,-2327.97,0.00014095,2]
[347126139,1735512659534,-1261.89,0.00014095,2]
[347126140,1735512659543,-500.0,0.00014095,2]
[347126141,1735512659553,-500.0,0.00014095,2]
[347126142,1735512659563,-8391.93,0.00014095,2]
[347126143,1735512659572,-500.0,0.00014095,2]
[347126144,1735512659582,-787.93,0.00014095,2]
[347126145,1735512659591,-13486.76,0.00014095,2]
[347126146,1735512659602,-500.0,0.00014095,2]
[347126147,1735512659611,-500.0,0.00014095,2]
[347126148,1735512659620,-500.0,0.00014095,2]
[347126149,1735512659629,-4898.19,0.00014095,2]
[347126150,1735512659638,-853.89,0.00014095,2]
[347126151,1735512659647,-546.94,0.00014095,2]
[347126152,1735512659656,-500.0,0.00014129,2]
[347126153,1735512659665,-918.24,0.00014129,2]
[347126154,1735512659675,-500.0,0.00014129,2]
[347126155,1735512659684,-4892.15,0.00014129,2]
[347126156,1735512659693,-1249.36,0.00014129,2]
[347126157,1735512659702,-500.0,0.00014129,2]
[347126158,1735512659712,-845.04,0.00014129,2]
[347126159,1735512659722,-1779.32,0.00014129,2]
[347126160,1735512659732,-500.0,0.00014129,2]
[347126161,1735512659742,-500.0,0.00014129,2]
[347126162,1735512659752,-992.81,0.00014129,2]
[347126163,1735512659761,-500.0,0.00014129,2]
[347126164,1735512659771,-500.0,0.00014129,2]
[347126165,1735512659780,-200.0,0.0001417,2]
[347126166,1735512659789,-250.0,0.00014188,2]
[347126167,1735512659799,-500.0,0.00014234,2]
[347126168,1735512659809,-500.0,0.00014234,2]
[347126169,1735512659818,-210.19,0.00014245,2]
[347126170,1735512659827,-1500.0,0.00014249,2]
[347126171,1735512659948,-500.0,0.00014367,2]
[347126172,1735512659960,-500.0,0.00014367,2]
[347126173,1735512659970,-516.3,0.00014367,2]
[347126174,1735512659979,-500.0,0.00014367,2]
[347126175,1735512659988,-500.0,0.00014367,2]
[347126176,1735512659998,-500.0,0.00014367,2]
[347126177,1735512660007,-500.0,0.00014367,2]
[347126178,1735512660018,-536.26,0.00014367,2]
[347126179,1735512660028,-500.0,0.00014367,2]
[347126180,1735512660038,-500.0,0.00014367,2]
[347126181,1735512660048,-500.0,0.00014367,2]
[347126182,1735512660058,-500.0,0.00014367,2]
[347126183,1735512660068,-548.87,0.00014367,2]
[347126184,1735512660078,-500.0,0.00014367,2]
[347126185,1735512660089,-500.0,0.00014367,2]
[347126186,1735512660099,-1300.27,0.00014367,2]
[347126187,1735512660109,-2297.64,0.00014367,2]
[347126188,1735512660119,-500.0,0.00014367,2]
[347126189,1735512660128,-15551.2,0.00014367,2]
[347126190,1735512660138,-500.0,0.00014367,2]
[347126191,1735512660148,-500.0,0.00014367,2]
[347126192,1735512660157,-500.0,0.00014367,2]
[347126193,1735512660167,-500.0,0.00014367,2]
[347126194,1735512660176,-677.18,0.00014367,2]
[347126195,1735512660186,-500.0,0.00014367,2]
[347126196,1735512660195,-500.0,0.00014367,2]
[347126197,1735512660204,-500.0,0.00014367,2]
[347126198,1735512660214,-938.53,0.00014367,2]
[347126199,1735512660224,-2773.74,0.00014367,2]
[347126200,1735512660234,-500.0,0.00014367,2]
[347126201,1735512660244,-500.0,0.00014367,2]
[347126202,1735512660254,-529.14,0.00014367,2]
[347126203,1735512660268,-549.27,0.00014367,2]
[347126204,1735512660278,-500.0,0.00014367,2]
[347126205,1735512660287,-500.0,0.00014367,2]
[347126206,1735512660298,-500.0,0.00014367,2]
[347126207,1735512660307,-500.0,0.00014367,2]
[347126208,1735512660316,-5366.51,0.00014367,2]
[347126209,1735512660325,-606.16,0.00014367,2]
[347126210,1735512660336,-500.0,0.00014367,2]
[347126211,1735512660345,-500.0,0.00014367,2]
[347126212,1735512660354,-1210.25,0.00014367,2]
[347126213,1735512660363,-500.0,0.00014367,2]
[347126214,1735512660373,-500.0,0.00014367,2]
[347126215,1735512660383,-500.0,0.00014367,2]
[347126216,1735512660392,-528.76,0.00014367,2]
[347126217,1735512660402,-500.0,0.00014367,2]
[347126218,1735512660411,-1732.79,0.00014367,2]
[347126219,1735512660420,-604.19,0.00014367,2]
[347126220,1735512660430,-500.0,0.00014367,2]
[347126221,1735512660439,-500.0,0.00014367,2]
[347126222,1735512660449,-1481.65,0.00014367,2]
[347126223,1735512660458,-588.06,0.00014367,2]
[347126224,1735512660468,-500.0,0.00014367,2]
[347126225,1735512660478,-500.0,0.00014367,2]
[347126226,1735512660487,-709.85,0.00014367,2]
[347126227,1735512660496,-500.0,0.00014367,2]
[347126228,1735512660505,-1078.57,0.00014367,2]
[347126229,1735512660515,-500.0,0.00014367,2]
[347126230,1735512660524,-509.04,0.00014367,2]
[347126231,1735512660534,-500.0,0.00014367,2]
[347126232,1735512660543,-500.0,0.00014368,2]
[347126233,1735512660553,-500.0,0.00014368,2]
[347126234,1735512660565,-543.63,0.00014368,2]
[347126235,1735512660574,-500.0,0.00014368,2]
[347126236,1735512660586,-500.0,0.00014368,2]
[347126237,1735512660596,-500.0,0.00014368,2]
[347126238,1735512660606,-669.74,0.00014368,2]
[347126239,1735512660615,-500.0,0.00014368,2]
[347126240,1735512660625,-536.31,0.00014368,2]
[347126241,1735512660634,-668.56,0.00014368,2]
[347126242,1735512660644,-667.58,0.00014368,2]
[347126243,1735512660653,-500.0,0.00014368,2]
[347126244,1735512660664,-500.0,0.00014368,2]
[347126245,1735512660673,-500.0,0.00014368,2]
[347126246,1735512660683,-500.0,0.00014368,2]
[347126247,1735512660693,-567.13,0.00014368,2]
[347126248,1735512660702,-500.0,0.00014368,2]
[347126249,1735512660712,-500.0,0.00014368,2]
[347126250,1735512660721,-667.88,0.00014368,2]
[347126251,1735512660731,-790.26,0.00014368,2]
[347126252,1735512660741,-500.0,0.00014368,2]
[347126253,1735512660750,-751.75,0.00014368,2]
[347126254,1735512660759,-726.93,0.00014368,2]
[347126255,1735512660769,-500.0,0.00014368,2]
[347126256,1735512660778,-500.0,0.00014368,2]
[347126257,1735512660787,-500.0,0.00014368,2]
[347126258,1735512660796,-500.0,0.00014368,2]
[347126259,1735512660805,-500.0,0.00014368,2]
[347126260,1735512660815,-500.0,0.00014368,2]
[347126261,1735512660824,-786.17,0.00014368,2]
[347126262,1735512660833,-500.0,0.00014368,2]
[347126263,1735512660843,-507.32,0.00014368,2]
[347126264,1735512660852,-534.04,0.00014368,2]
[347126265,1735512660861,-500.0,0.00014368,2]
[347126266,1735512660870,-514.64,0.00014368,2]
[347126267,1735512660879,-500.0,0.00014368,2]
[347126268,1735512660888,-958.79,0.00014368,2]
[347126269,1735512660898,-781.36,0.00014368,2]
[347126270,1735512660908,-500.0,0.00014368,2]
[347126271,1735512660917,-689.52,0.00014368,2]
[347126272,1735512660926,-500.0,0.00014368,2]
[347126273,1735512660936,-839.1,0.00014368,2]
[347126274,1735512660945,-500.0,0.00014368,2]
[347126275,1735512660954,-500.0,0.00014368,2]
[347126276,1735512660964,-649.3,0.00014368,2]
[347126277,1735512660973,-500.0,0.00014368,2]
[347126278,1735512660982,-500.0,0.00014368,2]
[347126279,1735512660991,-506.3,0.00014368,2]
[347126280,1735512661001,-500.0,0.00014368,2]
[347126281,1735512661010,-535.52,0.00014368,2]
[347126282,1735512661020,-867.0,0.00014368,2]
[347126283,1735512661029,-519.68,0.00014368,2]
[347126284,1735512661040,-504.99,0.00014368,2]
[347126285,1735512661050,-2595.17,0.00014368,2]
[347126286,1735512661059,-500.0,0.00014368,2]
[347126287,1735512661069,-512.02,0.00014368,2]
[347126288,1735512661078,-500.0,0.00014368,2]
[347126289,1735512661087,-500.0,0.00014368,2]
[347126290,1735512661097,-751.35,0.00014368,2]
[347126291,1735512661107,-500.0,0.00014368,2]
[347126292,1735512661117,-1441.68,0.00014368,2]
[347126293,1735512661127,-1112.26,0.00014368,2]
[347126294,1735512661136,-500.0,0.00014368,2]
[347126295,1735512661145,-866.62,0.00014368,2]
[347126296,1735512661154,-500.0,0.00014368,2]
[347126297,1735512661164,-681.75,0.00014368,2]
[347126298,1735512661174,-649.24,0.00014368,2]
[347126299,1735512661186,-645.7,0.00014368,2]
[347126300,1735512661196,-869.68,0.00014368,2]
[347126301,1735512661205,-1784.83,0.00014368,2]
[347126302,1735512661214,-2876.58,0.00014368,2]
[347126303,1735512661223,-500.0,0.00014368,2]
[347126304,1735512661232,-500.0,0.00014368,2]
[347126305,1735512661241,-500.0,0.00014368,2]
[347126306,1735512661249,-720.92,0.00014368,2]
[347126307,1735512661259,-4718.19,0.00014368,2]
[347126308,1735512661270,-1054.35,0.00014368,2]
[347126309,1735512661279,-614.0,0.00014368,2]
[347126310,1735512661289,-1623.64,0.00014368,2]
[347126311,1735512661298,-1534.62,0.00014368,2]
[347126312,1735512661308,-693.39,0.00014368,2]
[347126313,1735512661317,-653.61,0.00014368,2]
[347126314,1735512661326,-500.0,0.00014368,2]
[347126315,1735512661335,-2984.28,0.00014368,2]
[347126316,1735512661344,-500.0,0.00014368,2]
[347126317,1735512661354,-602.83,0.00014368,2]
[347126318,1735512661362,-1236.17,0.00014368,2]
[347126319,1735512661372,-721.93,0.00014368,2]
[347126320,1735512661380,-2186.53,0.00014368,2]
[347126321,1735512661389,-790.8,0.00014368,2]
[347126322,1735512661398,-500.0,0.00014368,2]
[347126323,1735512661407,-916.71,0.00014368,2]
[347126324,1735512661416,-500.0,0.00014368,2]
[347126325,1735512661426,-500.0,0.00014368,2]
[347126326,1735512661436,-1092.16,0.00014368,2]
[347126327,1735512661445,-565.6,0.00014368,2]
[347126328,1735512661455,-855.89,0.00014368,2]
[347126329,1735512661464,-1260.76,0.00014368,2]
[347126330,1735512661474,-500.0,0.00014368,2]
[347126331,1735512661483,-782.54,0.00014368,2]
[347126332,1735512661492,-1679.25,0.00014368,2]
[347126333,1735512661501,-573.78,0.00014368,2]
[347126334,1735512661511,-500.0,0.00014368,2]
[347126335,1735512661627,-500.0,0.00014368,2]
[347126336,1735512661638,-598.16,0.00014368,2]
[347126337,1735512661648,-994.58,0.00014368,2]
[347126338,1735512661657,-1750.51,0.00014368,2]
[347126339,1735512661666,-584.61,0.00014368,2]
[347126340,1735512661676,-500.0,0.00014368,2]
[347126341,1735512661685,-1039.92,0.00014368,2]
[347126342,1735512661695,-1141.92,0.00014368,2]
[347126343,1735512661704,-701.15,0.00014368,2]
[347126344,1735512661714,-500.0,0.00014368,2]
[347126345,1735512661724,-500.0,0.00014369,2]
[347126346,1735512661733,-500.0,0.00014369,2]
[347126347,1735512661742,-500.0,0.00014369,2]
[347126348,1735512661752,-500.0,0.00014369,2]
[347126349,1735512661761,-500.0,0.00014369,2]
[347126350,1735512661771,-560.12,0.00014369,2]
[347126351,1735512661780,-500.0,0.00014369,2]
[347126352,1735512661790,-500.0,0.00014369,2]
[347126353,1735512661800,-518.98,0.00014369,2]
[347126354,1735512661809,-500.0,0.00014369,2]
[347126355,1735512661818,-500.0,0.00014369,2]
[347126356,1735512661827,-500.0,0.00014369,2]
[347126357,1735512661838,-500.0,0.00014369,2]
[347126358,1735512661847,-590.57,0.00014369,2]
[347126359,1735512661857,-500.0,0.00014369,2]
[347126360,1735512661866,-516.04,0.00014369,2]
[347126361,1735512661875,-500.0,0.00014369,2]
[347126362,1735512661885,-500.0,0.00014369,2]
[347126363,1735512661894,-500.0,0.00014369,2]
[347126364,1735512661904,-510.15,0.00014369,2]
[347126365,1735512661914,-500.0,0.00014369,2]
[347126366,1735512661924,-637.65,0.00014369,2]
[347126367,1735512661934,-500.0,0.00014369,2]
[347126368,1735512661943,-500.0,0.00014369,2]
[347126369,1735512661953,-500.0,0.00014369,2]
[347126370,1735512661962,-557.36,0.00014369,2]
[347126371,1735512661972,-500.0,0.00014369,2]
[347126372,1735512661982,-500.0,0.00014369,2]
[347126373,1735512661991,-500.0,0.00014369,2]
[347126374,1735512662001,-610.97,0.00014369,2]
[347126375,1735512662010,-500.0,0.00014369,2]
[347126376,1735512662020,-568.57622258,0.00014369,2]
[347126377,1735512662030,-500.0,0.00014369,2]
[347126378,1735512662040,-500.0,0.00014369,2]
[347126379,1735512662049,-598.04,0.00014369,2]
[347126380,1735512662059,-500.0,0.00014369,2]
[347126381,1735512662068,-598.84,0.00014369,2]
[347126382,1735512662078,-885.65,0.00014369,2]
[347126383,1735512662088,-576.7,0.00014369,2]
[347126384,1735512662097,-531.12,0.00014369,2]
[347126385,1735512662106,-925.56,0.00014369,2]
[347126386,1735512662115,-500.0,0.00014369,2]
[347126387,1735512662124,-500.0,0.00014369,2]
[347126388,1735512662133,-519.42,0.00014369,2]
[347126389,1735512662142,-739.11,0.00014369,2]
[347126390,1735512662152,-735.49,0.00014369,2]
[347126391,1735512662162,-798.57,0.00014369,2]
[347126392,1735512662171,-500.0,0.00014369,2]
[347126393,1735512662181,-648.48,0.00014369,2]
[347126394,1735512662191,-500.0,0.00014369,2]
[347126395,1735512662201,-809.97,0.00014369,2]
[347126396,1735512662210,-528.84,0.00014369,2]
[347126397,1735512662220,-500.0,0.00014369,2]
[347126398,1735512662229,-500.0,0.00014369,2]
[347126399,1735512662239,-500.0,0.00014369,2]
[347126400,1735512662249,-500.0,0.00014369,2]
[347126401,1735512662260,-524.35,0.00014369,2]
[347126402,1735512662270,-522.01,0.00014369,2]
[347126403,1735512662280,-500.0,0.00014369,2]
[347126404,1735512662289,-500.0,0.00014369,2]
[347126405,1735512662299,-500.0,0.00014369,2]
[347126406,1735512662308,-532.45,0.00014369,2]
[347126407,1735512662318,-698.92,0.00014369,2]
[347126408,1735512662327,-500.0,0.00014369,2]
[347126409,1735512662337,-500.0,0.00014369,2]
[347126410,1735512662347,-500.0,0.00014369,2]
[347126411,1735512662366,-541.06,0.00014369,2]
[347126412,1735512662381,-500.0,0.00014369,2]
[347126413,1735512662402,-500.0,0.00014369,2]
[347126414,1735512662420,-500.0,0.00014369,2]
[347126415,1735512662437,-500.0,0.00014369,2]
[347126416,1735512662455,-517.75,0.00014369,2]
[347126417,1735512662474,-904.52,0.00014369,2]
[347126418,1735512662492,-628.11,0.00014369,2]
[347126419,1735512662510,-500.0,0.00014369,2]
[347126420,1735512662530,-500.0,0.00014369,2]
[347126421,1735512662545,-532.12,0.00014369,2]
[347126422,1735512662560,-500.0,0.00014369,2]
[347126423,1735512662578,-588.86,0.00014369,2]
[347126424,1735512662594,-500.0,0.00014369,2]
[347126425,1735512662611,-549.66,0.00014369,2]
[347126426,1735512662628,-500.0,0.00014369,2]
[347126427,1735512662644,-586.0,0.00014369,2]
[347126428,1735512662659,-625.88,0.00014369,2]
[347126429,1735512662675,-500.0,0.00014369,2]
[347126430,1735512662691,-500.0,0.00014369,2]
[347126431,1735512662707,-1194.27,0.00014369,2]
[347126432,1735512662723,-555.77,0.00014369,2]
[347126433,1735512662741,-500.0,0.00014369,2]
[347126434,1735512662757,-569.94,0.00014369,2]
[347126435,1735512662772,-500.0,0.00014369,2]
[347126436,1735512662788,-876.79,0.00014369,2]
[347126437,1735512662803,-500.0,0.00014369,2]
[347126438,1735512662818,-508.57,0.00014369,2]
[347126439,1735512662834,-500.0,0.00014369,2]
[347126440,1735512662849,-500.0,0.00014369,2]
[347126441,1735512662864,-517.89,0.00014369,2]
[347126442,1735512662879,-1285.64,0.00014369,2]
[347126443,1735512662895,-555.82,0.00014369,2]
[347126444,1735512662911,-500.0,0.00014369,2]
[347126445,1735512662927,-701.93,0.00014369,2]
[347126446,1735512662942,-500.0,0.00014369,2]
[347126447,1735512662957,-500.0,0.00014369,2]
[347126448,1735512662973,-687.63,0.00014369,2]
[347126449,1735512662988,-1144.31,0.00014369,2]
[347126450,1735512663003,-500.0,0.00014369,2]
[347126451,1735512663022,-709.97,0.00014369,2]
[347126452,1735512663037,-637.95,0.00014369,2]
[347126453,1735512663054,-500.0,0.00014369,2]
[347126454,1735512663071,-764.91,0.00014369,2]
[347126455,1735512663086,-562.61,0.00014369,2]
[347126456,1735512663103,-693.6,0.00014369,2]
[347126457,1735512663118,-500.0,0.00014369,2]
[347126458,1735512663135,-500.0,0.00014369,2]
[347126459,1735512663152,-703.11,0.00014369,2]
[347126460,1735512663168,-814.93,0.00014369,2]
[347126461,1735512663184,-810.41,0.00014369,2]
[347126462,1735512663199,-1217.7,0.00014369,2]
[347126463,1735512663217,-649.9,0.00014369,2]
[347126464,1735512663232,-633.84,0.00014369,2]
[347126465,1735512663248,-166.77510487,0.00014369,2]
[347126466,1735512663266,-599.98,0.00014369,2]
[347126467,1735512663282,-500.0,0.00014369,2]
[347126468,1735512663297,-557.36,0.00014369,2]
[347126469,1735512663315,-500.0,0.00014369,2]
[347126470,1735512663330,-639.65,0.00014369,2]
[347126471,1735512663347,-657.03,0.00014369,2]
[347126472,1735512663365,-500.0,0.00014369,2]
[347126473,1735512663380,-500.0,0.00014369,2]
[347126474,1735512663396,-834.39,0.00014369,2]
[347126475,1735512663411,-500.0,0.00014369,2]
[347126476,1735512663427,-671.99,0.00014369,2]
[347126477,1735512663443,-500.0,0.00014369,2]
[347126478,1735512663458,-500.0,0.00014369,2]
[347126479,1735512663474,-500.0,0.00014369,2]
[347126480,1735512663490,-740.04,0.00014369,2]
[347126481,1735512663505,-1194.96,0.00014369,2]
[347126482,1735512663521,-1069.09,0.00014369,2]
[347126483,1735512663536,-500.0,0.00014369,2]
[347126484,1735512663552,-500.0,0.00014369,2]
[347126485,1735512663567,-500.0,0.00014369,2]
[347126486,1735512663741,-568.93,0.00014369,2]
[347126487,1735512663753,-500.0,0.00014369,2]
[347126488,1735512663763,-650.86,0.00014369,2]
[347126489,1735512663773,-593.28,0.00014369,2]
[347126490,1735512663783,-774.94,0.00014369,2]
[347126491,1735512663792,-593.04,0.00014369,2]
[347126492,1735512663802,-500.0,0.00014369,2]